[Event "3rd FIDE WCCC Blitz U10 2019"]
[Site "Minsk"]
[Date "2019.08.18"]
[Round "8.2"]
[White "Vershinin, Igor"]
[Black "Boykov, Pavel"]
[Result "0-1"]
[ECO "A00"]
[WhiteElo "2188"]
[BlackElo "1553"]
[Annotator "ChessBase"]
[PlyCount "112"]
[EventDate "2019.08.18"]
[EventType "swiss"]
[EventCountry "BLR"]
[SourceTitle "playchess.com"]
[Source "ChessBase"]
[SourceQuality "1"]
[TimeControl "300+2"]

1. a3 {[%emt 0:00:00]} Nf6 {[%emt 0:00:00]} 2. d4 {[%emt 0:00:00]} g6 {[%emt 0:00:00]} 3. c3 {[%emt 0:00:01]} Bg7 {[%emt 0:00:01]} 4. Nd2 {[%emt 0:00:00]} O-O {[%emt 0:00:02]} 5. e4 {[%emt 0:00:01]} d6 {[%emt 0:00:00]} 6. Ngf3 {[%emt 0:00:01]} Nbd7 {[%emt 0:00:02]} 7. Bd3 {[%emt 0:00:01]} e5 {[%emt 0:00:01]} 8. O-O {[%emt 0:00:01]} a5 {[%emt 0:00:01]} 9. Re1 {[%emt 0:00:04]} c6 {[%emt 0:00:04]} 10. a4 {[%emt 0:00:05]} Nh5 {[%emt 0:00:10]} 11. Nf1 {[%emt 0:00:05]} Qe8 {[%emt 0:00:06]} 12. Be3 {[%emt 0:00:12]} h6 {[%emt 0:00:34]} 13. Qd2 {[%emt 0:00:11]} Kh7 {[%emt 0:00:02]} 14. Ng3 {[%emt 0:00:10]} Nxg3 {[%emt 0:00:02]} 15. hxg3 {[%emt 0:00:02]} Nf6 {[%emt 0:00:03]} 16. dxe5 {[%emt 0:00:06]} dxe5 {[%emt 0:00:01]} 17. Bc5 {[%emt 0:00:01]} Rg8 {[%emt 0:00:02]} 18. Rad1 {[%emt 0:00:07]} Bg4 {[%emt 0:00:12]} 19. Bf1 {[%emt 0:00:17]} Nd7 {[%emt 0:00:12]} 20. Bd6 {[%emt 0:00:10]} Be6 {[%emt 0:00:22]} 21. c4 {[%emt 0:00:17]} b6 {[%emt 0:00:17]} 22. Qc3 {[%emt 0:00:15]} f6 {[%emt 0:00:03]} 23. b3 {[%emt 0:00:38]} Bf8 {[%emt 0:00:04]} 24. Bxf8 {[%emt 0:00:04]} Qxf8 {[%emt 0:00:10]} 25. Rd2 {[%emt 0:00:10]} Qe7 {[%emt 0:00:02]} 26. Red1 {[%emt 0:00:14]} Nc5 {[%emt 0:00:01]} 27. Qe3 {[%emt 0:00:01]} Rad8 {[%emt 0:00:10]} 28. Rxd8 {[%emt 0:00:34]} Rxd8 {[%emt 0:00:01]} 29. Rxd8 {[%emt 0:00:01]} Qxd8 {[%emt 0:00:01]} 30. Nd2 {[%emt 0:00:02]} Qd6 {[%emt 0:00:17]} 31. f4 {[%emt 0:00:10]} Bf7 {[%emt 0:00:19]} 32. Kf2 {[%emt 0:00:04]} Qc7 {[%emt 0:00:17]} 33. f5 {[%emt 0:00:24]} g5 {[%emt 0:00:19]} 34. g4 {[%emt 0:00:10]} Qd8 {[%emt 0:00:15]} 35. Ke1 {[%emt 0:00:06]} Qd6 {[%emt 0:00:11]} 36. Be2 {[%emt 0:00:08]} Be8 {[%emt 0:00:08]} 37. Kd1 {[%emt 0:00:35]} Kg7 {[%emt 0:00:24]} 38. Kc2 {[%emt 0:00:01]} Kf8 {[%emt 0:00:10]} 39. Qc3 {[%emt 0:00:31]} Na6 {[%emt 0:00:11]} 40. Kb2 {[%emt 0:00:15]} Nb4 {[%emt 0:00:08]} 41. Nf3 {[%emt 0:00:04]} c5 {[%emt 0:00:12]} 42. Qe1 {[%emt 0:00:00]} Bc6 {[%emt 0:00:02]} 43. Bd1 {[%emt 0:00:03]} Nd3+ {[%emt 0:00:03]} 44. Kc3 {[%emt 0:00:03]} Nxe1 45. Nxe1 Qxd1 {[%emt 0:00:09]} 46. Nf3 {[%emt 0:00:02]} Bxe4 {[%emt 0:00:02]} 47. Nd2 {[%emt 0:00:01]} Bxg2 {[%emt 0:00:02]} 48. b4 {[%emt 0:00:02]} Qc1+ {[%emt 0:00:01]} 49. Kd3 {[%emt 0:00:01]} Bf1+ {[%emt 0:00:01]} 50. Nxf1 {[%emt 0:00:01]} Qxf1+ {[%emt 0:00:01]} 51. Ke4 {[%emt 0:00:01]} axb4 {[%emt 0:00:02]} 52. Kd5 {[%emt 0:00:01]} b3 {[%emt 0:00:01]} 53. a5 {[%emt 0:00:01]} bxa5 54. Ke6 {[%emt 0:00:01]} b2 {[%emt 0:00:01]} 55. Kd6 {[%emt 0:00:01]} b1=Q {[%emt 0:00:05]} 56. Kd7 {[%emt 0:00:07]} h5 {[%emt 0:00:07]} 0-1

[Event "3rd FIDE WCCC Blitz U10 2019"]
[Site "Minsk"]
[Date "2019.08.18"]
[Round "8.3"]
[White "Navoyan, Gagik"]
[Black "Rudnev, Andrei"]
[Result "1-0"]
[ECO "B13"]
[WhiteElo "1698"]
[BlackElo "1639"]
[Annotator "NA"]
[PlyCount "87"]
[EventDate "2019.08.18"]
[EventType "swiss"]
[EventCountry "BLR"]
[SourceTitle "playchess.com"]
[Source "ChessBase"]
[SourceQuality "1"]
[TimeControl "300+2"]

1. e4 {[%emt 0:00:04]} c6 {[%emt 0:00:00]} 2. d4 {[%emt 0:00:01]} d5 {[%emt 0:00:01]} 3. exd5 {[%emt 0:00:01]} cxd5 {[%emt 0:00:00]} 4. c4 {[%emt 0:00:01]} Nf6 {[%emt 0:00:06]} 5. Nc3 {[%emt 0:00:02]} Nc6 {[%emt 0:00:03]} 6. Nf3 {[%emt 0:00:07]} Bg4 {[%emt 0:00:01]} 7. cxd5 {[%emt 0:00:02]} Nxd5 {[%emt 0:00:07]} 8. Qb3 {[%emt 0:00:02]} Nxc3 {[%emt 0:00:30]} 9. bxc3 {[%emt 0:00:03]} Bxf3 {[%emt 0:00:11]} 10. gxf3 {[%emt 0:00:02]} Qc7 {[%emt 0:00:09]} 11. Rb1 {[%emt 0:00:25]} Rb8 {[%emt 0:00:50]} 12. d5 {[%emt 0:00:34]} Ne5 {[%emt 0:00:23]} 13. Bb5+ {[%emt 0:01:15]} Nd7 {[%emt 0:00:14]} 14. c4 {[%emt 0:00:38]} b6 {[%emt 0:00:09]} 15. Be3 {[%emt 0:00:12]} g6 {[%emt 0:01:06]} 16. Bd4 {[%emt 0:00:12]} f6 {[%emt 0:00:03]} 17. Qe3 {[%emt 0:00:24]} Bg7 {[%emt 0:00:27]} 18. Qe6 {[%emt 0:00:14]} Qd6 {[%emt 0:00:06]} 19. Qxd6 {[%emt 0:00:11]} exd6 {[%emt 0:00:02]} 20. O-O {[%emt 0:00:08]} Rd8 {[%emt 0:00:18]} 21. Rfe1+ {[%emt 0:00:04]} Kf7 {[%emt 0:00:01]} 22. Re6 {[%emt 0:00:01]} Nc5 {[%emt 0:00:27]} 23. Bxc5 {[%emt 0:00:07]} dxc5 {[%emt 0:00:14]} 24. Rbe1 {[%emt 0:00:03]} Bf8 {[%emt 0:00:01]} 25. Kg2 {[%emt 0:00:33]} Bd6 {[%emt 0:00:03]} 26. Bc6 {[%emt 0:00:03]} g5 {[%emt 0:00:09]} 27. R6e3 {[%emt 0:00:16]} h5 {[%emt 0:00:06]} 28. Ra3 {[%emt 0:00:02]} Bb8 {[%emt 0:00:04]} 29. Re6 {[%emt 0:00:04]} h4 {[%emt 0:00:03]} 30. h3 {[%emt 0:00:01]} Rhf8 {[%emt 0:00:01]} 31. Rae3 {[%emt 0:00:02]} Bd6 {[%emt 0:00:02]} 32. Ra3 {[%emt 0:00:01]} Bb8 {[%emt 0:00:03]} 33. Ra6 {[%emt 0:00:02]} Kg7 {[%emt 0:00:02]} 34. Ra3 {[%emt 0:00:03]} Kf7 {[%emt 0:00:02]} 35. Rb3 {[%emt 0:00:04]} Rd6 {[%emt 0:00:02]} 36. Rbe3 {[%emt 0:00:03]} Rxe6 {[%emt 0:00:02]} 37. Rxe6 Rd8 {[%emt 0:00:02]} 38. Kf1 {[%emt 0:00:04]} Be5 {[%emt 0:00:03]} 39. Ke2 {[%emt 0:00:03]} Rc8 {[%emt 0:00:01]} 40. Kd3 {[%emt 0:00:02]} Rd8 {[%emt 0:00:02]} 41. Ke4 {[%emt 0:00:02]} Kg6 {[%emt 0:00:02]} 42. Re7 {[%emt 0:00:02]} a5 {[%emt 0:00:02]} 43. Rb7 {[%emt 0:00:00]} Rd6 44. Rxb6 {[%emt 0:00:04]} 1-0

[Event "3rd FIDE WCCC Blitz U10 2019"]
[Site "Minsk"]
[Date "2019.08.18"]
[Round "8.4"]
[White "Korsakov, Egor"]
[Black "Zimin, Artur"]
[Result "0-1"]
[ECO "B07"]
[WhiteElo "1510"]
[BlackElo "1672"]
[Annotator "NA"]
[PlyCount "158"]
[EventDate "2019.08.18"]
[EventType "swiss"]
[EventCountry "BLR"]
[SourceTitle "playchess.com"]
[Source "ChessBase"]
[SourceQuality "1"]
[TimeControl "300+2"]

1. e4 {[%emt 0:00:00]} d6 {[%emt 0:00:00]} 2. d4 {[%emt 0:00:00]} Nf6 {[%emt 0:00:00]} 3. Nc3 {[%emt 0:00:05]} g6 4. Bd3 Bg7 {[%emt 0:00:02]} 5. Be3 {[%emt 0:00:03]} O-O {[%emt 0:00:01]} 6. Nf3 {[%emt 0:00:03]} Nfd7 {[%emt 0:00:01]} 7. O-O {[%emt 0:00:09]} Nc6 {[%emt 0:00:01]} 8. d5 {[%emt 0:00:06]} Ncb8 {[%emt 0:00:01]} 9. Be2 {[%emt 0:00:06]} e5 {[%emt 0:00:02]} 10. Nd2 {[%emt 0:00:17]} f5 {[%emt 0:00:02]} 11. exf5 {[%emt 0:00:21]} gxf5 {[%emt 0:00:01]} 12. f4 {[%emt 0:00:06]} e4 {[%emt 0:00:13]} 13. Nb3 {[%emt 0:00:03]} Nf6 {[%emt 0:00:06]} 14. Bd4 {[%emt 0:00:04]} Nbd7 {[%emt 0:00:22]} 15. Nb1 {[%emt 0:00:11]} Qe7 {[%emt 0:00:28]} 16. c4 {[%emt 0:00:04]} b6 {[%emt 0:00:05]} 17. Nc3 {[%emt 0:00:02]} a6 {[%emt 0:00:02]} 18. Bf2 {[%emt 0:00:16]} Nc5 {[%emt 0:00:10]} 19. Bxc5 {[%emt 0:00:10]} bxc5 {[%emt 0:00:04]} 20. Na5 {[%emt 0:00:07]} Bd7 {[%emt 0:00:06]} 21. Nb3 {[%emt 0:00:14]} Kh8 {[%emt 0:00:17]} 22. g3 {[%emt 0:00:10]} Be8 {[%emt 0:00:13]} 23. Nd2 {[%emt 0:00:20]} Bg6 {[%emt 0:00:14]} 24. a3 {[%emt 0:00:13]} Rab8 {[%emt 0:00:07]} 25. Rb1 {[%emt 0:00:02]} h5 {[%emt 0:00:16]} 26. Nb3 {[%emt 0:00:29]} Ng4 {[%emt 0:00:10]} 27. Bxg4 {[%emt 0:00:05]} hxg4 {[%emt 0:00:03]} 28. Na5 {[%emt 0:00:02]} Be8 {[%emt 0:00:25]} 29. Re1 {[%emt 0:00:17]} Bd7 {[%emt 0:00:09]} 30. Nb3 {[%emt 0:00:05]} Qf7 {[%emt 0:00:08]} 31. Nd2 {[%emt 0:00:09]} Bd4+ {[%emt 0:00:02]} 32. Kh1 {[%emt 0:00:19]} Qh5 {[%emt 0:00:09]} 33. Qe2 {[%emt 0:00:18]} Kg7 {[%emt 0:00:11]} 34. Nf1 {[%emt 0:00:09]} Qg6 {[%emt 0:00:14]} 35. Qg2 {[%emt 0:00:19]} Qf6 {[%emt 0:00:06]} 36. Qc2 {[%emt 0:00:10]} Rb7 {[%emt 0:00:32]} 37. Nd1 {[%emt 0:00:21]} Rfb8 {[%emt 0:00:07]} 38. b3 {[%emt 0:00:00]} Kg8 {[%emt 0:00:15]} 39. Nde3 {[%emt 0:00:06]} Qg6 {[%emt 0:00:07]} 40. Ng2 {[%emt 0:00:03]} Bf6 {[%emt 0:00:05]} 41. Nge3 {[%emt 0:00:05]} Kf7 {[%emt 0:00:05]} 42. Re2 {[%emt 0:00:05]} Qh7 {[%emt 0:00:06]} 43. Rg2 {[%emt 0:00:04]} Qg6 {[%emt 0:00:08]} 44. Rd2 {[%emt 0:00:02]} Bg7 {[%emt 0:00:05]} 45. Re2 {[%emt 0:00:01]} Qf6 {[%emt 0:00:01]} 46. Ree1 {[%emt 0:00:01]} Qc3 {[%emt 0:00:07]} 47. Qxc3 {[%emt 0:00:03]} Bxc3 {[%emt 0:00:01]} 48. Rec1 {[%emt 0:00:01]} Rxb3 {[%emt 0:00:05]} 49. Rxb3 {[%emt 0:00:02]} Rxb3 {[%emt 0:00:01]} 50. Nd1 {[%emt 0:00:01]} Bd4 {[%emt 0:00:04]} 51. Rc2 {[%emt 0:00:04]} Rb1 {[%emt 0:00:06]} 52. Rd2 {[%emt 0:00:03]} e3 {[%emt 0:00:02]} 53. Nfxe3 {[%emt 0:00:03]} Bxe3 54. Rd3 Bd4 {[%emt 0:00:07]} 55. Kg2 {[%emt 0:00:01]} Ba4 {[%emt 0:00:01]} 56. Nf2 {[%emt 0:00:02]} Rb2 {[%emt 0:00:02]} 57. Kf1 {[%emt 0:00:02]} Rxf2+ {[%emt 0:00:02]} 58. Ke1 {[%emt 0:00:01]} Rxh2 {[%emt 0:00:03]} 59. Kf1 {[%emt 0:00:04]} Rb2 {[%emt 0:00:04]} 60. Ke1 {[%emt 0:00:05]} Rb3 {[%emt 0:00:02]} 61. Rd2 {[%emt 0:00:02]} Rxa3 {[%emt 0:00:02]} 62. Rh2 {[%emt 0:00:01]} Kg6 {[%emt 0:00:05]} 63. Re2 {[%emt 0:00:02]} Re3 {[%emt 0:00:01]} 64. Kf1 {[%emt 0:00:04]} Rxe2 {[%emt 0:00:01]} 65. Kxe2 {[%emt 0:00:00]} Bb3 {[%emt 0:00:03]} 66. Kd2 {[%emt 0:00:02]} Bf2 {[%emt 0:00:03]} 67. Kc3 {[%emt 0:00:01]} Ba4 {[%emt 0:00:04]} 68. Kd2 {[%emt 0:00:01]} Bd7 {[%emt 0:00:02]} 69. Ke2 {[%emt 0:00:01]} Bxg3 {[%emt 0:00:01]} 70. Ke3 {[%emt 0:00:00]} Bh2 {[%emt 0:00:01]} 71. Kd3 {[%emt 0:00:02]} Bxf4 {[%emt 0:00:02]} 72. Kc3 {[%emt 0:00:01]} g3 {[%emt 0:00:00]} 73. Kd3 {[%emt 0:00:00]} g2 {[%emt 0:00:01]} 74. Ke2 {[%emt 0:00:02]} g1=Q {[%emt 0:00:03]} 75. Kd3 {[%emt 0:00:01]} Qd4+ {[%emt 0:00:02]} 76. Ke2 {[%emt 0:00:02]} Qe3+ {[%emt 0:00:00]} 77. Kf1 {[%emt 0:00:00]} Be5 {[%emt 0:00:05]} 78. Kg2 {[%emt 0:00:01]} f4 {[%emt 0:00:01]} 79. Kf1 {[%emt 0:00:02]} Bh3# {[%emt 0:00:02]} 0-1

[Event "3rd FIDE WCCC Blitz U10 2019"]
[Site "Minsk"]
[Date "2019.08.18"]
[Round "8.5"]
[White "Maimin, Leonid"]
[Black "Zverev, Lev"]
[Result "0-1"]
[ECO "C88"]
[WhiteElo "1419"]
[BlackElo "1881"]
[Annotator "NA"]
[PlyCount "136"]
[EventDate "2019.08.18"]
[EventType "swiss"]
[EventCountry "BLR"]
[SourceTitle "playchess.com"]
[Source "ChessBase"]
[SourceQuality "1"]
[TimeControl "300+2"]

1. e4 {[%emt 0:00:02]} e5 {[%emt 0:00:00]} 2. Nf3 {[%emt 0:00:01]} Nc6 {[%emt 0:00:00]} 3. Bb5 {[%emt 0:00:04]} a6 {[%emt 0:00:00]} 4. Ba4 {[%emt 0:00:01]} Nf6 {[%emt 0:00:01]} 5. O-O {[%emt 0:00:02]} Be7 {[%emt 0:00:01]} 6. Re1 {[%emt 0:00:06]} b5 {[%emt 0:00:04]} 7. Bb3 O-O {[%emt 0:00:02]} 8. d4 {[%emt 0:00:07]} d6 {[%emt 0:00:11]} 9. Nc3 {[%emt 0:00:07]} exd4 {[%emt 0:00:04]} 10. Nxd4 {[%emt 0:00:03]} Nxd4 {[%emt 0:00:02]} 11. Qxd4 {[%emt 0:00:04]} c5 {[%emt 0:00:01]} 12. Qd3 {[%emt 0:00:09]} c4 {[%emt 0:00:02]} 13. Bxc4 {[%emt 0:00:01]} bxc4 {[%emt 0:00:01]} 14. Qxc4 {[%emt 0:00:02]} Be6 15. Nd5 {[%emt 0:00:08]} Rc8 {[%emt 0:00:07]} 16. Qb3 {[%emt 0:00:03]} Nxd5 {[%emt 0:00:10]} 17. exd5 {[%emt 0:00:02]} Bf5 {[%emt 0:00:12]} 18. c3 {[%emt 0:00:04]} Bf6 {[%emt 0:00:02]} 19. Be3 {[%emt 0:00:15]} Bd3 {[%emt 0:00:08]} 20. Qd1 {[%emt 0:00:12]} Bg6 {[%emt 0:00:05]} 21. Qd2 {[%emt 0:00:10]} h6 {[%emt 0:00:05]} 22. Rad1 {[%emt 0:00:05]} Qa5 {[%emt 0:00:07]} 23. a3 {[%emt 0:00:15]} Qa4 {[%emt 0:00:02]} 24. Bd4 {[%emt 0:00:12]} Bxd4 {[%emt 0:00:30]} 25. Qxd4 {[%emt 0:00:01]} Qb5 {[%emt 0:00:00]} 26. Qb4 {[%emt 0:00:18]} Qd7 {[%emt 0:00:09]} 27. Re3 {[%emt 0:00:27]} Rb8 {[%emt 0:00:01]} 28. Qc4 {[%emt 0:00:09]} Rxb2 {[%emt 0:00:02]} 29. Qxa6 {[%emt 0:00:03]} Qf5 {[%emt 0:00:08]} 30. Rf3 {[%emt 0:00:26]} Qe5 {[%emt 0:00:12]} 31. Re3 {[%emt 0:00:08]} Qf6 {[%emt 0:00:15]} 32. Rf3 {[%emt 0:00:03]} Qd8 {[%emt 0:00:01]} 33. Re3 {[%emt 0:00:06]} Qb8 {[%emt 0:00:01]} 34. h3 {[%emt 0:00:10]} Rb6 {[%emt 0:00:08]} 35. Qe2 {[%emt 0:00:10]} Qa8 {[%emt 0:00:03]} 36. c4 {[%emt 0:00:09]} Rc8 {[%emt 0:00:03]} 37. Re1 {[%emt 0:00:11]} Kh7 {[%emt 0:00:07]} 38. Kh2 {[%emt 0:00:31]} Qa4 {[%emt 0:00:14]} 39. Rc1 {[%emt 0:00:26]} Rcb8 {[%emt 0:00:29]} 40. Rcc3 {[%emt 0:00:18]} Rc8 {[%emt 0:00:13]} 41. Rc1 {[%emt 0:00:01]} Rb7 {[%emt 0:00:20]} 42. h4 {[%emt 0:00:01]} Rbc7 {[%emt 0:00:17]} 43. h5 {[%emt 0:00:01]} Bf5 {[%emt 0:00:01]} 44. g4 {[%emt 0:00:04]} Bd7 {[%emt 0:00:01]} 45. Qd3+ {[%emt 0:00:08]} Kg8 {[%emt 0:00:04]} 46. Re4 {[%emt 0:00:01]} Qa7 {[%emt 0:00:07]} 47. Kg2 {[%emt 0:00:03]} f5 {[%emt 0:00:09]} 48. Re7 {[%emt 0:00:11]} Be8 {[%emt 0:00:28]} 49. Rxc7 {[%emt 0:00:02]} Rxc7 {[%emt 0:00:01]} 50. gxf5 {[%emt 0:00:02]} Bxh5 {[%emt 0:00:04]} 51. Re1 {[%emt 0:00:03]} Bf7 {[%emt 0:00:06]} 52. Rh1 {[%emt 0:00:04]} Qc5 {[%emt 0:00:06]} 53. Rh4 {[%emt 0:00:02]} Ra7 {[%emt 0:00:09]} 54. f6 {[%emt 0:00:02]} Rxa3 {[%emt 0:00:05]} 55. Qe2 {[%emt 0:00:04]} g6 {[%emt 0:00:11]} 56. Rxh6 {[%emt 0:00:04]} Ra1 {[%emt 0:00:18]} 57. Rxg6+ Bxg6 {[%emt 0:00:02]} 58. Qe6+ {[%emt 0:00:01]} Bf7 {[%emt 0:00:04]} 59. Qg4+ {[%emt 0:00:02]} Kf8 {[%emt 0:00:00]} 60. Qg7+ {[%emt 0:00:01]} Ke8 {[%emt 0:00:01]} 61. Qh8+ {[%emt 0:00:00]} Kd7 {[%emt 0:00:01]} 62. Qh3+ {[%emt 0:00:02]} Kc7 {[%emt 0:00:01]} 63. Qh7 {[%emt 0:00:03]} Ra2 {[%emt 0:00:02]} 64. Qxf7+ {[%emt 0:00:01]} Kb6 {[%emt 0:00:01]} 65. Qg6 {[%emt 0:00:07]} Qxf2+ {[%emt 0:00:02]} 66. Kh3 {[%emt 0:00:01]} Qh2+ 67. Kg4 Rg2+ {[%emt 0:00:03]} 68. Kf5 {[%emt 0:00:01]} Qh3+ {[%emt 0:00:04]} 0-1

[Event "3rd FIDE WCCC Blitz U10 2019"]
[Site "Minsk"]
[Date "2019.08.18"]
[Round "8.6"]
[White "Yadegar, Radin"]
[Black "Simbelov, Roman T."]
[Result "0-1"]
[ECO "D35"]
[WhiteElo "1626"]
[BlackElo "1603"]
[Annotator "NA"]
[PlyCount "79"]
[EventDate "2019.08.18"]
[EventType "swiss"]
[EventCountry "BLR"]
[SourceTitle "playchess.com"]
[Source "ChessBase"]
[SourceQuality "1"]
[TimeControl "300+2"]

1. d4 {[%emt 0:00:00]} d5 {[%emt 0:00:00]} 2. c4 {[%emt 0:00:00]} e6 {[%emt 0:00:00]} 3. Nc3 {[%emt 0:00:01]} Nf6 {[%emt 0:00:01]} 4. cxd5 {[%emt 0:00:01]} exd5 {[%emt 0:00:01]} 5. Bg5 {[%emt 0:00:01]} c6 {[%emt 0:00:01]} 6. e3 {[%emt 0:00:03]} Bf5 {[%emt 0:00:01]} 7. Qf3 {[%emt 0:00:03]} Bg6 {[%emt 0:00:16]} 8. Bxf6 {[%emt 0:00:01]} Qxf6 {[%emt 0:00:01]} 9. Qxf6 gxf6 {[%emt 0:00:02]} 10. Nf3 {[%emt 0:00:21]} Nd7 {[%emt 0:00:02]} 11. Nh4 {[%emt 0:00:05]} Bb4 {[%emt 0:00:03]} 12. a3 {[%emt 0:00:22]} Bd6 {[%emt 0:00:15]} 13. Ne2 {[%emt 0:00:10]} O-O-O {[%emt 0:00:10]} 14. Ng3 {[%emt 0:00:09]} Rhe8 {[%emt 0:00:26]} 15. Be2 {[%emt 0:00:15]} Nb6 {[%emt 0:00:20]} 16. Ngf5 {[%emt 0:00:05]} Bf8 {[%emt 0:00:02]} 17. O-O {[%emt 0:00:33]} Na4 {[%emt 0:00:11]} 18. Bg4 {[%emt 0:00:58]} Kb8 {[%emt 0:00:09]} 19. b3 {[%emt 0:00:02]} Nc3 20. Rac1 {[%emt 0:00:08]} Ne4 {[%emt 0:00:35]} 21. b4 {[%emt 0:00:08]} Nd2 {[%emt 0:00:09]} 22. Rfd1 {[%emt 0:00:06]} Nc4 {[%emt 0:00:02]} 23. Rc3 {[%emt 0:00:20]} b6 {[%emt 0:00:26]} 24. Be2 {[%emt 0:00:07]} b5 {[%emt 0:00:31]} 25. Nxg6 {[%emt 0:00:54]} hxg6 {[%emt 0:00:06]} 26. Ng3 {[%emt 0:00:00]} Kb7 {[%emt 0:00:16]} 27. Nf1 {[%emt 0:00:26]} a5 {[%emt 0:00:53]} 28. Rb1 {[%emt 0:00:18]} axb4 {[%emt 0:00:08]} 29. axb4 {[%emt 0:00:01]} Ra8 {[%emt 0:00:07]} 30. Bxc4 {[%emt 0:00:11]} dxc4 {[%emt 0:00:03]} 31. Rc2 {[%emt 0:00:04]} Ra4 {[%emt 0:00:06]} 32. Rcb2 {[%emt 0:00:00]} Rea8 {[%emt 0:00:04]} 33. Ng3 {[%emt 0:00:06]} Ra1 {[%emt 0:00:28]} 34. Ne4 {[%emt 0:00:04]} f5 {[%emt 0:00:08]} 35. Nc3 {[%emt 0:00:01]} R8a3 {[%emt 0:00:03]} 36. Rxa1 {[%emt 0:00:04]} Rxa1+ {[%emt 0:00:01]} 37. Rb1 {[%emt 0:00:00]} Rxb1+ {[%emt 0:00:01]} 38. Nxb1 Bxb4 39. Kf1 {[%emt 0:00:06]} c3 {[%emt 0:00:04]} 40. Ke2 {[%emt 0:00:03]} 0-1

[Event "3rd FIDE WCCC Blitz U10 2019"]
[Site "Minsk"]
[Date "2019.08.18"]
[Round "9.1"]
[White "Usov, Aleksandr E."]
[Black "Navoyan, Gagik"]
[Result "1-0"]
[ECO "C55"]
[WhiteElo "1919"]
[BlackElo "1698"]
[Annotator "NA"]
[PlyCount "61"]
[EventDate "2019.08.18"]
[EventType "swiss"]
[EventCountry "BLR"]
[SourceTitle "playchess.com"]
[Source "ChessBase"]
[SourceQuality "1"]
[TimeControl "300+2"]

1. e4 {[%emt 0:00:00]} e5 {[%emt 0:00:00]} 2. Nf3 {[%emt 0:00:00]} Nc6 {[%emt 0:00:00]} 3. d4 {[%emt 0:00:00]} exd4 {[%emt 0:00:01]} 4. Bc4 {[%emt 0:00:01]} Nf6 {[%emt 0:00:01]} 5. e5 {[%emt 0:00:00]} d5 {[%emt 0:00:04]} 6. Bb5 {[%emt 0:00:01]} Ne4 {[%emt 0:00:01]} 7. Nxd4 {[%emt 0:00:01]} Bd7 {[%emt 0:00:02]} 8. Bxc6 {[%emt 0:00:01]} bxc6 {[%emt 0:00:01]} 9. O-O {[%emt 0:00:01]} Bc5 {[%emt 0:00:01]} 10. f3 {[%emt 0:00:02]} Ng5 {[%emt 0:00:04]} 11. Be3 {[%emt 0:00:00]} O-O {[%emt 0:00:05]} 12. f4 {[%emt 0:00:01]} Ne4 {[%emt 0:00:02]} 13. Nd2 {[%emt 0:00:01]} Nxd2 {[%emt 0:00:03]} 14. Qxd2 {[%emt 0:00:01]} Re8 {[%emt 0:00:24]} 15. c3 {[%emt 0:00:30]} f6 {[%emt 0:00:48]} 16. Nf3 {[%emt 0:00:01]} Qe7 {[%emt 0:00:38]} 17. b4 {[%emt 0:00:02]} Bb6 {[%emt 0:00:29]} 18. Rae1 {[%emt 0:00:22]} Bf5 {[%emt 0:01:09]} 19. Bxb6 {[%emt 0:00:50]} axb6 {[%emt 0:00:27]} 20. Nd4 {[%emt 0:00:05]} Qd7 {[%emt 0:00:12]} 21. b5 {[%emt 0:00:07]} cxb5 {[%emt 0:00:13]} 22. Nxf5 {[%emt 0:00:02]} Qxf5 {[%emt 0:00:06]} 23. Qxd5+ {[%emt 0:00:01]} Qe6 {[%emt 0:00:17]} 24. Qxb5 {[%emt 0:00:03]} Rxa2 {[%emt 0:00:17]} 25. f5 {[%emt 0:00:25]} c6 {[%emt 0:00:16]} 26. fxe6 {[%emt 0:01:45]} cxb5 {[%emt 0:00:02]} 27. exf6 {[%emt 0:00:01]} gxf6 {[%emt 0:00:01]} 28. Rxf6 {[%emt 0:00:01]} Rc2 {[%emt 0:00:06]} 29. Re3 {[%emt 0:00:15]} Rc1+ {[%emt 0:00:04]} 30. Kf2 {[%emt 0:00:02]} Rf8 {[%emt 0:00:00]} 31. Rg3+ {[%emt 0:00:02]} 1-0

[Event "3rd FIDE WCCC Blitz U10 2019"]
[Site "Minsk"]
[Date "2019.08.18"]
[Round "9.2"]
[White "Boykov, Pavel"]
[Black "Simbelov, Roman T."]
[Result "1-0"]
[ECO "C65"]
[WhiteElo "1553"]
[BlackElo "1603"]
[Annotator "NA"]
[PlyCount "95"]
[EventDate "2019.08.18"]
[EventType "swiss"]
[EventCountry "BLR"]
[SourceTitle "playchess.com"]
[Source "ChessBase"]
[SourceQuality "1"]
[TimeControl "300+2"]

1. e4 {[%emt 0:00:00]} e5 {[%emt 0:00:00]} 2. Nf3 {[%emt 0:00:00]} Nc6 {[%emt 0:00:00]} 3. Bb5 {[%emt 0:00:00]} Nf6 {[%emt 0:00:02]} 4. O-O {[%emt 0:00:04]} Be7 {[%emt 0:00:02]} 5. Re1 {[%emt 0:00:02]} d6 {[%emt 0:00:22]} 6. c3 {[%emt 0:00:04]} O-O {[%emt 0:00:07]} 7. d4 {[%emt 0:00:03]} exd4 {[%emt 0:00:01]} 8. cxd4 {[%emt 0:00:01]} a6 {[%emt 0:00:20]} 9. Ba4 {[%emt 0:00:03]} b5 {[%emt 0:00:05]} 10. Bc2 {[%emt 0:00:01]} Bg4 {[%emt 0:00:04]} 11. h3 {[%emt 0:00:03]} Bh5 {[%emt 0:00:01]} 12. Be3 {[%emt 0:00:14]} Bg6 {[%emt 0:00:09]} 13. Nfd2 {[%emt 0:00:22]} Nb4 {[%emt 0:00:05]} 14. Nc3 {[%emt 0:00:05]} c5 {[%emt 0:00:19]} 15. Bb1 {[%emt 0:00:08]} Nc6 {[%emt 0:00:15]} 16. Nb3 {[%emt 0:00:26]} b4 {[%emt 0:00:37]} 17. Nd5 {[%emt 0:00:05]} Nxd5 {[%emt 0:00:46]} 18. exd5 {[%emt 0:00:02]} Na5 {[%emt 0:00:02]} 19. Bxg6 {[%emt 0:00:18]} hxg6 {[%emt 0:00:08]} 20. Nxa5 {[%emt 0:00:30]} Qxa5 21. dxc5 {[%emt 0:00:43]} dxc5 {[%emt 0:00:05]} 22. Qd3 {[%emt 0:00:07]} Bd6 {[%emt 0:00:25]} 23. Qc4 {[%emt 0:00:06]} Qb5 {[%emt 0:00:15]} 24. Rac1 {[%emt 0:00:22]} Rac8 {[%emt 0:00:06]} 25. b3 {[%emt 0:00:34]} Rfe8 {[%emt 0:00:07]} 26. Red1 {[%emt 0:00:22]} Re7 {[%emt 0:00:36]} 27. Qg4 {[%emt 0:00:07]} Qd7 {[%emt 0:00:18]} 28. Qf3 {[%emt 0:00:08]} Qf5 {[%emt 0:00:17]} 29. Qxf5 {[%emt 0:00:24]} gxf5 {[%emt 0:00:02]} 30. Rc4 {[%emt 0:00:02]} Rec7 {[%emt 0:00:13]} 31. Rdc1 {[%emt 0:00:05]} Kf8 {[%emt 0:00:04]} 32. Kf1 {[%emt 0:00:03]} Ke7 {[%emt 0:00:01]} 33. Ke2 {[%emt 0:00:02]} f6 {[%emt 0:00:05]} 34. Kf3 {[%emt 0:00:07]} g5 {[%emt 0:00:03]} 35. g3 {[%emt 0:00:07]} Kd7 {[%emt 0:00:04]} 36. h4 {[%emt 0:00:04]} g4+ {[%emt 0:00:02]} 37. Ke2 {[%emt 0:00:05]} Bf8 {[%emt 0:00:02]} 38. Rf4 {[%emt 0:00:07]} Re8 39. Rxf5 {[%emt 0:00:03]} Re5 {[%emt 0:00:05]} 40. Rxe5 {[%emt 0:00:01]} fxe5 {[%emt 0:00:01]} 41. Rc4 {[%emt 0:00:03]} Kd6 {[%emt 0:00:02]} 42. Rxg4 Kxd5 {[%emt 0:00:01]} 43. Rc4 {[%emt 0:00:03]} Bd6 {[%emt 0:00:03]} 44. f3 {[%emt 0:00:01]} Rg7 {[%emt 0:00:01]} 45. g4 {[%emt 0:00:03]} Be7 {[%emt 0:00:02]} 46. h5 {[%emt 0:00:01]} Bh4 {[%emt 0:00:03]} 47. h6 {[%emt 0:00:02]} Rg8 {[%emt 0:00:02]} 48. h7 {[%emt 0:00:05]} 1-0